[Event "Titled Tuesday Blitz November 14 Early 2023"]
[White "Grischuk, Alexander"]
[Black "Hua, Lefong"]
[WhiteFideId "4126025"]
[BlackFideId "2602253"]
[WhiteElo "2946"]
[BlackElo "2680"]
[Result "0-1"]
[Round "5"]
[TimeControl "180+1"]
[Date "2023.11.14"]
[WhiteClock "0:00:02"]
[BlackClock "0:00:25"]
[Board "59"]

1. d4 {[%clk 0:01:49]}  Nf6 {[%clk 0:02:59]} 2. c4 {[%clk 0:01:49]}  c5 {[%clk 0:03:00]} 3. d5 {[%clk 0:01:49]}  e6 {[%clk 0:03:00]} 4. Nc3 {[%clk 0:01:49]}  exd5 {[%clk 0:03:01]} 5. cxd5 {[%clk 0:01:49]}  d6 {[%clk 0:03:02]} 6. Nf3 {[%clk 0:01:46]}  g6 {[%clk 0:03:01]} 7. Nd2 {[%clk 0:01:46]}  Nbd7 {[%clk 0:03:01]} 8. e4 {[%clk 0:01:47]}  Bg7 {[%clk 0:03:01]} 9. Be2 {[%clk 0:01:47]}  O-O {[%clk 0:03:02]} 10. O-O {[%clk 0:01:47]}  Re8 {[%clk 0:03:02]} 11. a4 {[%clk 0:01:47]}  Ne5 {[%clk 0:02:57]} 12. Qc2 {[%clk 0:01:35]}  g5 {[%clk 0:02:51]} 13. Ra3 {[%clk 0:01:31]}  g4 {[%clk 0:02:46]} 14. Re1 {[%clk 0:01:28]}  a6 {[%clk 0:02:41]} 15. Nf1 {[%clk 0:01:28]}  Nh5 {[%clk 0:02:36]} 16. Nd1 {[%clk 0:01:22]}  Qf6 {[%clk 0:02:28]} 17. Ng3 {[%clk 0:01:18]}  Nxg3 {[%clk 0:02:04]} 18. fxg3 {[%clk 0:01:15]}  Qg6 {[%clk 0:01:57]} 19. Ne3 {[%clk 0:01:15]}  Bd7 {[%clk 0:01:53]} 20. a5 {[%clk 0:01:08]}  Rac8 {[%clk 0:01:35]} 21. Rf1 {[%clk 0:01:04]}  c4 {[%clk 0:01:31]} 22. Nf5 {[%clk 0:01:05]}  Nd3 {[%clk 0:01:26]} 23. Nxg7 {[%clk 0:00:40]}  Qxg7 {[%clk 0:01:19]} 24. Be3 {[%clk 0:00:24]}  Rxe4 {[%clk 0:01:14]} 25. Bb6 {[%clk 0:00:25]}  Rce8 {[%clk 0:01:09]} 26. Bxd3 {[%clk 0:00:13]}  cxd3 {[%clk 0:01:09]} 27. Qf2 {[%clk 0:00:14]}  Re2 {[%clk 0:01:01]} 28. Qf4 {[%clk 0:00:14]}  d2 {[%clk 0:00:58]} 29. Raa1 {[%clk 0:00:13]}  Bb5 {[%clk 0:00:50]} 30. Bd4 {[%clk 0:00:13]}  Qg6 {[%clk 0:00:49]} 31. Bc3 {[%clk 0:00:11]}  Qe4 {[%clk 0:00:34]} 32. Qg5+ {[%clk 0:00:09]}  Qg6 {[%clk 0:00:34]} 33. Qf4 {[%clk 0:00:09]}  R8e4 {[%clk 0:00:27]} 34. Qf6 {[%clk 0:00:04]}  Qxf6 {[%clk 0:00:27]} 35. Bxf6 {[%clk 0:00:02]}  Re1 {[%clk 0:00:25]} 0-1


[Site "https://www.chess.com"]

[Event "Titled Tuesday Blitz November 14 Early 2023"]
[White "Chigaev, Maksim"]
[Black "Wadsworth, Matthew J"]
[WhiteFideId "4108116"]
[BlackFideId "415804"]
[WhiteElo "2894"]
[BlackElo "2620"]
[Result "1-0"]
[Round "5"]
[TimeControl "180+1"]
[Date "2023.11.14"]
[WhiteClock "0:00:25"]
[BlackClock "0:00:02"]
[Board "62"]

1. d4 {[%clk 0:03:00]}  Nf6 {[%clk 0:02:56]} 2. c4 {[%clk 0:03:01]}  c5 {[%clk 0:02:56]} 3. d5 {[%clk 0:03:01]}  e6 {[%clk 0:02:57]} 4. Nc3 {[%clk 0:03:00]}  exd5 {[%clk 0:02:57]} 5. cxd5 {[%clk 0:02:59]}  d6 {[%clk 0:02:58]} 6. Nf3 {[%clk 0:02:52]}  g6 {[%clk 0:02:57]} 7. h3 {[%clk 0:02:52]}  Bg7 {[%clk 0:02:57]} 8. Bf4 {[%clk 0:02:53]}  O-O {[%clk 0:02:56]} 9. e3 {[%clk 0:02:54]}  a6 {[%clk 0:02:55]} 10. a4 {[%clk 0:02:53]}  Qe7 {[%clk 0:02:54]} 11. Be2 {[%clk 0:02:51]}  Ne8 {[%clk 0:02:54]} 12. O-O {[%clk 0:02:51]}  Nd7 {[%clk 0:02:54]} 13. a5 {[%clk 0:02:51]}  Nc7 {[%clk 0:02:50]} 14. Nd2 {[%clk 0:02:50]}  Ne5 {[%clk 0:02:50]} 15. Nc4 {[%clk 0:02:44]}  Nxc4 {[%clk 0:02:48]} 16. Bxc4 {[%clk 0:02:44]}  Bd7 {[%clk 0:02:47]} 17. Qb3 {[%clk 0:02:42]}  Rab8 {[%clk 0:02:43]} 18. Qb6 {[%clk 0:02:41]}  Ne8 {[%clk 0:02:06]} 19. Bxa6 {[%clk 0:02:40]}  g5 {[%clk 0:02:02]} 20. Bh2 {[%clk 0:02:40]}  f5 {[%clk 0:02:01]} 21. Bb5 {[%clk 0:02:35]}  f4 {[%clk 0:01:54]} 22. exf4 {[%clk 0:02:32]}  gxf4 {[%clk 0:01:53]} 23. Rae1 {[%clk 0:02:23]}  Be5 {[%clk 0:01:52]} 24. Bxd7 {[%clk 0:02:09]}  Qxd7 {[%clk 0:01:50]} 25. Ne4 {[%clk 0:02:09]}  Qg7 {[%clk 0:01:38]} 26. Kh1 {[%clk 0:01:59]}  Ra8 {[%clk 0:01:26]} 27. Nxc5 {[%clk 0:01:19]}  f3 {[%clk 0:00:43]} 28. gxf3 {[%clk 0:01:13]}  Bxh2 {[%clk 0:00:43]} 29. Kxh2 {[%clk 0:01:13]}  Kh8 {[%clk 0:00:43]} 30. Ne6 {[%clk 0:01:12]}  Qf7 {[%clk 0:00:29]} 31. Nxf8 {[%clk 0:00:56]}  Qf4+ {[%clk 0:00:25]} 32. Kh1 {[%clk 0:00:38]}  Qxf3+ {[%clk 0:00:20]} 33. Kg1 {[%clk 0:00:38]}  Nf6 {[%clk 0:00:14]} 34. Qxd6 {[%clk 0:00:32]}  Rxa5 {[%clk 0:00:03]} 35. Re3 {[%clk 0:00:31]}  Rxd5 {[%clk 0:00:02]} 36. Rxf3 {[%clk 0:00:25]} 1-0


[Site "https://www.chess.com"]

[Event "Titled Tuesday Blitz November 14 Early 2023"]
[White "Manukyan, Sargis A."]
[Black "Klukin, Kirill"]
[WhiteFideId "13303970"]
[BlackFideId "24199273"]
[WhiteElo "2597"]
[BlackElo "2854"]
[Result "0-1"]
[Round "5"]
[TimeControl "180+1"]
[Date "2023.11.14"]
[WhiteClock "0:00:04"]
[BlackClock "0:00:17"]
[Board "63"]

1. d4 {[%clk 0:03:00]}  f5 {[%clk 0:02:57]} 2. c4 {[%clk 0:03:00]}  e6 {[%clk 0:02:57]} 3. Nc3 {[%clk 0:03:00]}  Nf6 {[%clk 0:02:57]} 4. Nf3 {[%clk 0:02:54]}  Bb4 {[%clk 0:02:57]} 5. Qc2 {[%clk 0:02:53]}  b6 {[%clk 0:02:57]} 6. e3 {[%clk 0:02:53]}  Bb7 {[%clk 0:02:57]} 7. Be2 {[%clk 0:02:54]}  O-O {[%clk 0:02:55]} 8. O-O {[%clk 0:02:54]}  Bxc3 {[%clk 0:02:53]} 9. Qxc3 {[%clk 0:02:55]}  a5 {[%clk 0:02:54]} 10. b3 {[%clk 0:02:53]}  Nc6 {[%clk 0:02:54]} 11. a3 {[%clk 0:02:53]}  Ne4 {[%clk 0:02:43]} 12. Qc2 {[%clk 0:02:53]}  Qe7 {[%clk 0:02:37]} 13. Nd2 {[%clk 0:02:53]}  Nd8 {[%clk 0:02:27]} 14. Nxe4 {[%clk 0:02:49]}  Bxe4 {[%clk 0:02:27]} 15. Bd3 {[%clk 0:02:49]}  Bxd3 {[%clk 0:02:22]} 16. Qxd3 {[%clk 0:02:49]}  Nf7 {[%clk 0:02:23]} 17. Bd2 {[%clk 0:02:44]}  Nd6 {[%clk 0:02:19]} 18. f3 {[%clk 0:02:43]}  a4 {[%clk 0:01:37]} 19. b4 {[%clk 0:02:36]}  c6 {[%clk 0:01:37]} 20. d5 {[%clk 0:02:18]}  cxd5 {[%clk 0:01:22]} 21. cxd5 {[%clk 0:02:16]}  b5 {[%clk 0:01:17]} 22. e4 {[%clk 0:02:07]}  fxe4 {[%clk 0:01:14]} 23. fxe4 {[%clk 0:02:06]}  Nc4 {[%clk 0:01:14]} 24. Bc3 {[%clk 0:01:59]}  e5 {[%clk 0:01:11]} 25. Bd2 {[%clk 0:01:44]}  d6 {[%clk 0:01:09]} 26. g3 {[%clk 0:01:38]}  h6 {[%clk 0:01:09]} 27. Kg2 {[%clk 0:01:35]}  Qd7 {[%clk 0:01:08]} 28. h3 {[%clk 0:01:33]}  Qa7 {[%clk 0:01:05]} 29. g4 {[%clk 0:01:28]}  Qe7 {[%clk 0:01:02]} 30. g5 {[%clk 0:01:26]}  hxg5 {[%clk 0:01:00]} 31. Rae1 {[%clk 0:01:18]}  g4 {[%clk 0:00:46]} 32. Bc1 {[%clk 0:01:05]}  Qh4 {[%clk 0:00:43]} 33. hxg4 {[%clk 0:00:52]}  Rxf1 {[%clk 0:00:41]} 34. Rxf1 {[%clk 0:00:50]}  Qxg4+ {[%clk 0:00:41]} 35. Kh2 {[%clk 0:00:45]}  Rf8 {[%clk 0:00:40]} 36. Rxf8+ {[%clk 0:00:37]}  Kxf8 {[%clk 0:00:40]} 37. Qf1+ {[%clk 0:00:15]}  Kg8 {[%clk 0:00:41]} 38. Qe1 {[%clk 0:00:13]}  Kh7 {[%clk 0:00:28]} 39. Kh1 {[%clk 0:00:07]}  Qh3+ {[%clk 0:00:27]} 40. Kg1 {[%clk 0:00:07]}  Kg6 {[%clk 0:00:26]} 41. Qf2 {[%clk 0:00:06]}  Qg4+ {[%clk 0:00:25]} 42. Kh2 {[%clk 0:00:05]}  Qxe4 {[%clk 0:00:24]} 43. Qg3+ {[%clk 0:00:06]}  Kf7 {[%clk 0:00:20]} 44. Qh3 {[%clk 0:00:05]}  Qe2+ {[%clk 0:00:17]} 45. Kg1 {[%clk 0:00:04]}  Qd1+ {[%clk 0:00:17]} 46. Kh2 {[%clk 0:00:04]}  Qc2+ {[%clk 0:00:18]} 47. Kg3 {[%clk 0:00:03]}  Qd3+ {[%clk 0:00:12]} 48. Kg4 {[%clk 0:00:03]}  Qxh3+ {[%clk 0:00:12]} 49. Kxh3 {[%clk 0:00:04]}  g5 {[%clk 0:00:11]} 50. Kg4 {[%clk 0:00:05]}  Kg7 {[%clk 0:00:12]} 51. Kxg5 {[%clk 0:00:04]}  Nb6 {[%clk 0:00:08]} 52. Kf5 {[%clk 0:00:04]}  Kf7 {[%clk 0:00:08]} 53. Ke4 {[%clk 0:00:04]}  Kf6 {[%clk 0:00:09]} 54. Be3 {[%clk 0:00:04]}  Nc4 {[%clk 0:00:09]} 55. Bc1 {[%clk 0:00:04]}  Kg6 {[%clk 0:00:09]} 56. Kf3 {[%clk 0:00:02]}  Kf5 {[%clk 0:00:10]} 57. Bh6 {[%clk 0:00:02]}  e4+ {[%clk 0:00:10]} 58. Ke2 {[%clk 0:00:02]}  Ke5 {[%clk 0:00:11]} 59. Bg7+ {[%clk 0:00:03]}  Kxd5 {[%clk 0:00:12]} 60. Kd1 {[%clk 0:00:03]}  Nxa3 {[%clk 0:00:12]} 61. Kd2 {[%clk 0:00:03]}  Nc4+ {[%clk 0:00:13]} 62. Kc3 {[%clk 0:00:04]}  e3 {[%clk 0:00:14]} 63. Kd3 {[%clk 0:00:04]}  a3 {[%clk 0:00:13]} 64. Bc3 {[%clk 0:00:04]}  Ke6 {[%clk 0:00:13]} 65. Bd4 {[%clk 0:00:04]}  Kf5 {[%clk 0:00:14]} 66. Bc3 {[%clk 0:00:03]}  Kg4 {[%clk 0:00:14]} 67. Ke2 {[%clk 0:00:03]}  Kf4 {[%clk 0:00:15]} 68. Bd4 {[%clk 0:00:04]}  Ke4 {[%clk 0:00:15]} 69. Bc3 {[%clk 0:00:04]}  d5 {[%clk 0:00:16]} 70. Ba1 {[%clk 0:00:05]}  d4 {[%clk 0:00:16]} 71. Kd1 {[%clk 0:00:04]}  d3 {[%clk 0:00:16]} 72. Bc3 {[%clk 0:00:05]}  d2 {[%clk 0:00:16]} 73. Kc2 {[%clk 0:00:05]}  Nb2 {[%clk 0:00:15]} 74. Bxd2 {[%clk 0:00:03]}  exd2 {[%clk 0:00:15]} 75. Kxd2 {[%clk 0:00:02]}  a2 {[%clk 0:00:16]} 76. Kc2 {[%clk 0:00:03]}  a1=Q {[%clk 0:00:16]} 77. Kb3 {[%clk 0:00:04]}  Nc4 {[%clk 0:00:16]} 78. Kc2 {[%clk 0:00:04]}  Qb2+ {[%clk 0:00:17]} 79. Kd1 {[%clk 0:00:04]}  Qd2# {[%clk 0:00:17]} 0-1


[Site "https://www.chess.com"]

[Event "Titled Tuesday Blitz November 14 Early 2023"]
[White "Vlassov, Nikolai"]
[Black "Bordi, Kevin"]
[WhiteFideId "4103360"]
[BlackFideId "621862"]
[WhiteElo "2592"]
[BlackElo "2829"]
[Result "1-0"]
[Round "5"]
[TimeControl "180+1"]
[Date "2023.11.14"]
[WhiteClock "0:00:27"]
[BlackClock "0:00:15"]
[Board "66"]

1. e4 {[%clk 0:03:00]}  d5 {[%clk 0:02:59]} 2. exd5 {[%clk 0:03:00]}  Qxd5 {[%clk 0:03:00]} 3. Nc3 {[%clk 0:02:59]}  Qa5 {[%clk 0:03:00]} 4. Nf3 {[%clk 0:03:00]}  Nf6 {[%clk 0:02:59]} 5. d4 {[%clk 0:03:00]}  Nc6 {[%clk 0:03:00]} 6. d5 {[%clk 0:02:54]}  Nb4 {[%clk 0:02:59]} 7. Bd2 {[%clk 0:02:47]}  Nbxd5 {[%clk 0:02:53]} 8. Bb5+ {[%clk 0:02:41]}  Kd8 {[%clk 0:02:28]} 9. Ng5 {[%clk 0:02:15]}  Be6 {[%clk 0:02:09]} 10. O-O {[%clk 0:02:04]}  Kc8 {[%clk 0:02:03]} 11. Bc4 {[%clk 0:01:52]}  Nxc3 {[%clk 0:02:01]} 12. Bxe6+ {[%clk 0:01:45]}  fxe6 {[%clk 0:02:01]} 13. bxc3 {[%clk 0:01:44]}  Qf5 {[%clk 0:01:47]} 14. Re1 {[%clk 0:01:42]}  Ng4 {[%clk 0:00:53]} 15. Qe2 {[%clk 0:01:23]}  h6 {[%clk 0:00:53]} 16. Nxe6 {[%clk 0:01:20]}  a5 {[%clk 0:00:39]} 17. Bf4 {[%clk 0:01:18]}  Ra6 {[%clk 0:00:36]} 18. Rad1 {[%clk 0:01:04]}  Rd6 {[%clk 0:00:27]} 19. Bxd6 {[%clk 0:00:57]}  exd6 {[%clk 0:00:26]} 20. Nd4 {[%clk 0:00:55]}  Qd7 {[%clk 0:00:24]} 21. Qe8+ {[%clk 0:00:49]}  Qxe8 {[%clk 0:00:23]} 22. Rxe8+ {[%clk 0:00:49]}  Kd7 {[%clk 0:00:24]} 23. Ra8 {[%clk 0:00:46]}  g5 {[%clk 0:00:24]} 24. Rxa5 {[%clk 0:00:40]}  Bg7 {[%clk 0:00:24]} 25. a4 {[%clk 0:00:35]}  Rf8 {[%clk 0:00:21]} 26. Rf5 {[%clk 0:00:28]}  Ra8 {[%clk 0:00:15]} 27. Rf7+ {[%clk 0:00:27]} 1-0


[Site "https://www.chess.com"]

[Event "Titled Tuesday Blitz November 14 Early 2023"]
[White "Lund, Gunnar"]
[Black "Mikhailovsky, Vladimir"]
[WhiteFideId "1520814"]
[BlackFideId "34105414"]
[WhiteElo "2560"]
[BlackElo "2819"]
[Result "0-1"]
[Round "5"]
[TimeControl "180+1"]
[Date "2023.11.14"]
[WhiteClock "0:00:05"]
[BlackClock "0:00:09"]
[Board "67"]

1. d4 {[%clk 0:03:00]}  d5 {[%clk 0:02:59]} 2. Bf4 {[%clk 0:03:01]}  Nf6 {[%clk 0:02:52]} 3. e3 {[%clk 0:02:43]}  c5 {[%clk 0:02:51]} 4. c3 {[%clk 0:02:44]}  e6 {[%clk 0:02:51]} 5. Nf3 {[%clk 0:02:42]}  Bd6 {[%clk 0:02:51]} 6. Bg3 {[%clk 0:02:42]}  O-O {[%clk 0:02:48]} 7. Nbd2 {[%clk 0:02:41]}  Qc7 {[%clk 0:02:48]} 8. Ne5 {[%clk 0:02:37]}  Nfd7 {[%clk 0:02:46]} 9. f4 {[%clk 0:02:34]}  f6 {[%clk 0:02:47]} 10. Nef3 {[%clk 0:02:31]}  c4 {[%clk 0:02:40]} 11. Be2 {[%clk 0:02:28]}  f5 {[%clk 0:02:33]} 12. O-O {[%clk 0:02:25]}  Nf6 {[%clk 0:02:32]} 13. Ne5 {[%clk 0:02:25]}  Nc6 {[%clk 0:02:26]} 14. Kh1 {[%clk 0:02:23]}  Bd7 {[%clk 0:02:24]} 15. Bh4 {[%clk 0:02:23]}  b5 {[%clk 0:02:20]} 16. Rg1 {[%clk 0:02:20]}  Be7 {[%clk 0:02:07]} 17. g4 {[%clk 0:02:16]}  Nxg4 {[%clk 0:01:58]} 18. Nxg4 {[%clk 0:01:36]}  Bxh4 {[%clk 0:01:52]} 19. Nf3 {[%clk 0:01:36]}  Qd8 {[%clk 0:00:50]} 20. Nxh4 {[%clk 0:01:16]}  Qxh4 {[%clk 0:00:49]} 21. Ne5 {[%clk 0:01:17]}  Nxe5 {[%clk 0:00:49]} 22. dxe5 {[%clk 0:01:18]}  Qf2 {[%clk 0:00:41]} 23. Rg3 {[%clk 0:01:17]}  Bc6 {[%clk 0:00:23]} 24. Bf3 {[%clk 0:00:40]}  Qxe3 {[%clk 0:00:22]} 25. Bxd5 {[%clk 0:00:33]}  Bxd5+ {[%clk 0:00:07]} 26. Qxd5 {[%clk 0:00:29]}  Qxf4 {[%clk 0:00:07]} 27. Qxe6+ {[%clk 0:00:24]}  Kh8 {[%clk 0:00:07]} 28. Rag1 {[%clk 0:00:25]}  Qe4+ {[%clk 0:00:07]} 29. R1g2 {[%clk 0:00:23]}  Rg8 {[%clk 0:00:03]} 30. Qe7 {[%clk 0:00:14]}  Rae8 {[%clk 0:00:01]} 31. Rxg7 {[%clk 0:00:12]}  Qe1+ {[%clk 0:00:01]} 32. Rg1 {[%clk 0:00:11]}  Qxg1+ {[%clk 0:00:02]} 33. Rxg1 {[%clk 0:00:10]}  Rxe7 {[%clk 0:00:02]} 34. Rf1 {[%clk 0:00:10]}  Rge8 {[%clk 0:00:02]} 35. Rxf5 {[%clk 0:00:10]}  Rxe5 {[%clk 0:00:03]} 36. Rf7 {[%clk 0:00:11]}  Re1+ {[%clk 0:00:03]} 37. Kg2 {[%clk 0:00:11]}  R1e7 {[%clk 0:00:04]} 38. Rf5 {[%clk 0:00:11]}  Rg7+ {[%clk 0:00:05]} 39. Kh3 {[%clk 0:00:11]}  Ree7 {[%clk 0:00:06]} 40. Rxb5 {[%clk 0:00:10]}  Rg6 {[%clk 0:00:06]} 41. Rc5 {[%clk 0:00:09]}  Kg7 {[%clk 0:00:06]} 42. Rxc4 {[%clk 0:00:10]}  Re3+ {[%clk 0:00:06]} 43. Kh4 {[%clk 0:00:10]}  Re2 {[%clk 0:00:07]} 44. h3 {[%clk 0:00:10]}  Reg2 {[%clk 0:00:07]} 45. Rc7+ {[%clk 0:00:09]}  Kh6 {[%clk 0:00:07]} 46. Rxa7 {[%clk 0:00:09]}  R2g5 {[%clk 0:00:08]} 47. Ra5 {[%clk 0:00:06]}  Rxa5 {[%clk 0:00:08]} 48. c4 {[%clk 0:00:05]}  Rh5# {[%clk 0:00:09]} 0-1


[Site "https://www.chess.com"]

[Event "Titled Tuesday Blitz November 14 Early 2023"]
[White "Nasir, Zehn"]
[Black "Materia, Marco"]
[WhiteFideId "2613239"]
[BlackFideId "45150451"]
[WhiteElo "2584"]
[BlackElo "2807"]
[Result "0-1"]
[Round "5"]
[TimeControl "180+1"]
[Date "2023.11.14"]
[WhiteClock "0:00:02"]
[BlackClock "0:00:07"]
[Board "68"]

1. d4 {[%clk 0:02:57]}  Nf6 {[%clk 0:03:00]} 2. Bf4 {[%clk 0:02:56]}  d6 {[%clk 0:02:58]} 3. e3 {[%clk 0:02:56]}  Nbd7 {[%clk 0:02:58]} 4. Nf3 {[%clk 0:02:53]}  b6 {[%clk 0:02:58]} 5. Nc3 {[%clk 0:02:52]}  Bb7 {[%clk 0:02:59]} 6. Bc4 {[%clk 0:02:52]}  e6 {[%clk 0:02:54]} 7. O-O {[%clk 0:02:51]}  Be7 {[%clk 0:02:54]} 8. Re1 {[%clk 0:02:44]}  d5 {[%clk 0:02:52]} 9. Bd3 {[%clk 0:02:42]}  O-O {[%clk 0:02:52]} 10. Ne5 {[%clk 0:02:41]}  Nxe5 {[%clk 0:02:51]} 11. dxe5 {[%clk 0:02:34]}  Nd7 {[%clk 0:02:52]} 12. Qh5 {[%clk 0:02:27]}  g6 {[%clk 0:02:48]} 13. Qh6 {[%clk 0:02:21]}  Re8 {[%clk 0:02:37]} 14. Rad1 {[%clk 0:02:15]}  Bf8 {[%clk 0:02:36]} 15. Qh3 {[%clk 0:02:13]}  Bg7 {[%clk 0:02:35]} 16. Qg3 {[%clk 0:02:09]}  Qe7 {[%clk 0:02:31]} 17. h4 {[%clk 0:01:54]}  Nc5 {[%clk 0:02:27]} 18. h5 {[%clk 0:01:51]}  Nxd3 {[%clk 0:02:27]} 19. cxd3 {[%clk 0:01:43]}  Qf8 {[%clk 0:02:08]} 20. d4 {[%clk 0:01:30]}  a6 {[%clk 0:02:06]} 21. Kh2 {[%clk 0:01:14]}  c5 {[%clk 0:02:01]} 22. Rh1 {[%clk 0:01:10]}  cxd4 {[%clk 0:01:59]} 23. exd4 {[%clk 0:01:09]}  Rac8 {[%clk 0:01:44]} 24. Qe3 {[%clk 0:01:08]}  b5 {[%clk 0:01:34]} 25. a3 {[%clk 0:01:08]}  b4 {[%clk 0:01:32]} 26. axb4 {[%clk 0:01:04]}  Qxb4 {[%clk 0:01:33]} 27. Rd2 {[%clk 0:00:57]}  Rc4 {[%clk 0:01:31]} 28. Kg3 {[%clk 0:00:55]}  Rec8 {[%clk 0:01:18]} 29. f3 {[%clk 0:00:51]}  a5 {[%clk 0:00:59]} 30. hxg6 {[%clk 0:00:49]}  fxg6 {[%clk 0:00:58]} 31. Bh6 {[%clk 0:00:47]}  Bh8 {[%clk 0:00:58]} 32. Bg5 {[%clk 0:00:38]}  Qf8 {[%clk 0:00:51]} 33. Rh4 {[%clk 0:00:34]}  Qf5 {[%clk 0:00:44]} 34. Kf2 {[%clk 0:00:27]}  Qf7 {[%clk 0:00:36]} 35. Rf4 {[%clk 0:00:25]}  Qd7 {[%clk 0:00:32]} 36. Bf6 {[%clk 0:00:26]}  a4 {[%clk 0:00:29]} 37. Bxh8 {[%clk 0:00:24]}  Kxh8 {[%clk 0:00:30]} 38. Ne2 {[%clk 0:00:20]}  Ba6 {[%clk 0:00:27]} 39. Rf6 {[%clk 0:00:20]}  Rc2 {[%clk 0:00:27]} 40. Qh6 {[%clk 0:00:19]}  Qg7 {[%clk 0:00:23]} 41. Qf4 {[%clk 0:00:13]}  g5 {[%clk 0:00:14]} 42. Qe3 {[%clk 0:00:11]}  g4 {[%clk 0:00:14]} 43. Rxc2 {[%clk 0:00:10]}  Rxc2 {[%clk 0:00:14]} 44. Qf4 {[%clk 0:00:09]}  Rxe2+ {[%clk 0:00:14]} 45. Kg1 {[%clk 0:00:09]}  Kg8 {[%clk 0:00:10]} 46. Rxe6 {[%clk 0:00:07]}  Bb5 {[%clk 0:00:09]} 47. Rb6 {[%clk 0:00:06]}  Be8 {[%clk 0:00:05]} 48. Rb8 {[%clk 0:00:05]}  Qg6 {[%clk 0:00:06]} 49. Qf6 {[%clk 0:00:04]}  Qxf6 {[%clk 0:00:06]} 50. Rxe8+ {[%clk 0:00:03]}  Qf8 {[%clk 0:00:06]} 51. Rxf8+ {[%clk 0:00:03]}  Kxf8 {[%clk 0:00:06]} 52. Kf1 {[%clk 0:00:02]}  Rxb2 {[%clk 0:00:07]} 0-1


[Site "https://www.chess.com"]

[Event "Titled Tuesday Blitz November 14 Early 2023"]
[White "Lobanov, Sergei"]
[Black "Alinasab, Mobina"]
[WhiteFideId "24183750"]
[BlackFideId "12528897"]
[WhiteElo "2805"]
[BlackElo "2552"]
[Result "1-0"]
[Round "5"]
[TimeControl "180+1"]
[Date "2023.11.14"]
[WhiteClock "0:00:05"]
[BlackClock "0:00:00"]
[Board "69"]

1. d4 {[%clk 0:02:59]}  Nf6 {[%clk 0:02:59]} 2. c4 {[%clk 0:02:59]}  e6 {[%clk 0:02:59]} 3. Nc3 {[%clk 0:03:00]}  Bb4 {[%clk 0:02:59]} 4. e3 {[%clk 0:03:00]}  b6 {[%clk 0:02:59]} 5. Ne2 {[%clk 0:02:56]}  Ne4 {[%clk 0:02:58]} 6. Qc2 {[%clk 0:02:52]}  Bb7 {[%clk 0:02:54]} 7. a3 {[%clk 0:02:22]}  Bxc3+ {[%clk 0:02:53]} 8. Nxc3 {[%clk 0:02:20]}  Nxc3 {[%clk 0:02:53]} 9. Qxc3 {[%clk 0:02:19]}  Qh4 {[%clk 0:02:53]} 10. b3 {[%clk 0:02:04]}  a5 {[%clk 0:02:43]} 11. Bb2 {[%clk 0:02:03]}  d6 {[%clk 0:02:37]} 12. d5 {[%clk 0:02:03]}  e5 {[%clk 0:02:35]} 13. Be2 {[%clk 0:01:58]}  Nd7 {[%clk 0:02:31]} 14. O-O {[%clk 0:01:58]}  O-O {[%clk 0:02:28]} 15. b4 {[%clk 0:01:56]}  Nf6 {[%clk 0:02:08]} 16. Qc2 {[%clk 0:01:31]}  c6 {[%clk 0:01:46]} 17. dxc6 {[%clk 0:01:29]}  Bxc6 {[%clk 0:01:47]} 18. f3 {[%clk 0:01:16]}  Qg5 {[%clk 0:01:31]} 19. Qc3 {[%clk 0:01:02]}  Rfc8 {[%clk 0:01:26]} 20. Rfd1 {[%clk 0:00:59]}  Ne8 {[%clk 0:01:11]} 21. e4 {[%clk 0:00:51]}  Qe7 {[%clk 0:00:56]} 22. Qe3 {[%clk 0:00:40]}  Qb7 {[%clk 0:00:42]} 23. b5 {[%clk 0:00:33]}  Bd7 {[%clk 0:00:41]} 24. a4 {[%clk 0:00:33]}  Be6 {[%clk 0:00:37]} 25. Rac1 {[%clk 0:00:33]}  Rc5 {[%clk 0:00:20]} 26. Ba3 {[%clk 0:00:33]}  Rac8 {[%clk 0:00:20]} 27. Bxc5 {[%clk 0:00:33]}  Rxc5 {[%clk 0:00:21]} 28. Rc2 {[%clk 0:00:31]}  Qc7 {[%clk 0:00:21]} 29. Rcd2 {[%clk 0:00:31]}  h6 {[%clk 0:00:20]} 30. h3 {[%clk 0:00:30]}  Kf8 {[%clk 0:00:18]} 31. Kh1 {[%clk 0:00:27]}  Kg8 {[%clk 0:00:18]} 32. f4 {[%clk 0:00:28]}  exf4 {[%clk 0:00:12]} 33. Qxf4 {[%clk 0:00:28]}  f6 {[%clk 0:00:10]} 34. Bg4 {[%clk 0:00:23]}  Bxc4 {[%clk 0:00:07]} 35. Rc2 {[%clk 0:00:23]}  Bf7 {[%clk 0:00:07]} 36. Rxc5 {[%clk 0:00:20]}  Qxc5 {[%clk 0:00:08]} 37. Bd7 {[%clk 0:00:20]}  Qc2 {[%clk 0:00:05]} 38. Qc1 {[%clk 0:00:14]}  Qxa4 {[%clk 0:00:04]} 39. Rd2 {[%clk 0:00:05]}  Qxe4 {[%clk 0:00:03]} 40. Qd1 {[%clk 0:00:04]}  f5 {[%clk 0:00:04]} 41. Re2 {[%clk 0:00:04]}  Qa8 {[%clk 0:00:04]} 42. Re7 {[%clk 0:00:04]}  Nf6 {[%clk 0:00:04]} 43. Bc6 {[%clk 0:00:04]}  Qd8 {[%clk 0:00:03]} 44. Ra7 {[%clk 0:00:04]}  Kh7 {[%clk 0:00:02]} 45. Qd4 {[%clk 0:00:04]}  Bg6 {[%clk 0:00:02]} 46. Ra8 {[%clk 0:00:05]}  Qe7 {[%clk 0:00:02]} 47. Qxb6 {[%clk 0:00:05]}  Bf7 {[%clk 0:00:02]} 48. Qf2 {[%clk 0:00:05]}  Qe5 {[%clk 0:00:02]} 49. Ra7 {[%clk 0:00:05]}  Bg6 {[%clk 0:00:02]} 50. b6 {[%clk 0:00:06]}  Qa1+ {[%clk 0:00:02]} 51. Kh2 {[%clk 0:00:06]}  Qe5+ {[%clk 0:00:02]} 52. Qg3 {[%clk 0:00:07]}  Qb2 {[%clk 0:00:02]} 53. b7 {[%clk 0:00:07]}  Nh5 {[%clk 0:00:03]} 54. Qe1 {[%clk 0:00:05]}  f4 {[%clk 0:00:02]} 55. Ra8 {[%clk 0:00:05]}  f3 {[%clk 0:00:00]} 56. Bxf3 {[%clk 0:00:05]} 1-0


[Site "https://www.chess.com"]